fUST/lending_fUST_20250811
["ID","MTS","AMOUNT","RATE_DAILY","PERIOD"]
[378578224,1754915475977,-460.0,0.00020633,2]
[378578225,1754915475987,-460.0,0.00020633,2]
[378578226,1754915475998,-640.85,0.00020633,2]
[378578227,1754915476007,-151.0,0.00020642,2]
[378578228,1754915476018,-151.0,0.00020663,2]
[378578229,1754915476027,-151.0,0.00020663,2]
[378578230,1754915476036,-427.31556,0.00020663,2]
[378578231,1754915476046,-427.31556,0.00020663,2]
[378578232,1754915476056,-332.452599,0.00020663,2]
[378578233,1754915476066,-332.452599,0.00020663,2]
[378578234,1754915476075,-460.0,0.00020663,2]
[378578235,1754915476084,-460.0,0.00020663,2]
[378578236,1754915476094,-402.053,0.00020663,2]
[378578237,1754915476104,-460.0,0.00020663,2]
[378578238,1754915476115,-402.053,0.00020663,2]
[378578239,1754915476124,-460.0,0.00020663,2]
[378578240,1754915476133,-212.775631,0.00020663,2]
[378578241,1754915476143,-151.0,0.00020663,2]
[378578242,1754915476152,-981.78,0.00020663,2]
[378578243,1754915476162,-464.25841897,0.00020663,2]
[378578244,1754915476171,-3530.64,0.00020663,2]
[378578245,1754915476181,-460.0,0.00020663,2]
[378578246,1754915476190,-460.0,0.00020663,2]
[378578247,1754915476200,-151.0,0.00020663,2]
[378578248,1754915476209,-157.970121,0.00020663,2]
[378578249,1754915476218,-3544.45,0.00020663,2]
[378578250,1754915476227,-460.0,0.00020663,2]
[378578251,1754915476237,-538.283317,0.00020664,2]
[378578252,1754915476246,-538.283317,0.00020664,2]
[378578253,1754915476255,-152.718368,0.00020664,2]
[378578254,1754915476265,-151.0,0.00020664,2]
[378578255,1754915476274,-175.37584,0.00020664,2]
[378578256,1754915476283,-175.37584,0.00020664,2]
[378578257,1754915476293,-151.0,0.00020664,2]
[378578258,1754915476302,-151.0,0.00020664,2]
[378578259,1754915476311,-151.0,0.00020664,2]
[378578260,1754915476321,-151.0,0.00020664,2]
[378578261,1754915476330,-151.0,0.00020664,2]
[378578262,1754915476340,-382.458308,0.00020664,2]
[378578263,1754915476349,-382.458308,0.00020664,2]
[378578264,1754915476359,-151.0,0.00020666,2]
[378578265,1754915476369,-151.0,0.00020666,2]
[378578266,1754915476380,-151.0,0.00020691,2]
[378578267,1754915476391,-151.0,0.00020693,2]
[378578268,1754915476401,-320.834265,0.00020693,2]
[378578269,1754915476411,-320.834265,0.00020693,2]
[378578270,1754915476424,-151.0,0.00020693,2]
[378578271,1754915476435,-260.0,0.000207,2]
[378578272,1754915476445,-151.0,0.00020701,2]
[378578273,1754915476454,-1880.417424,0.00020701,2]
[378578274,1754915476464,-1880.417424,0.00020701,2]
[378578275,1754915476474,-177.968835,0.00020702,2]
[378578276,1754915476483,-151.0,0.00020704,2]
[378578277,1754915476493,-500.0,0.00020704,2]
[378578278,1754915476503,-151.0,0.00020704,2]
[378578279,1754915476512,-151.0,0.00020704,2]
[378578280,1754915476522,-500.0,0.00020704,2]
[378578281,1754915476532,-151.0,0.00020704,2]
[378578282,1754915476541,-151.0,0.00020704,2]
[378578283,1754915476555,-151.0,0.00020704,2]
[378578284,1754915476565,-151.0,0.00020704,2]
[378578285,1754915476575,-281.5763041,0.00020704,2]
[378578286,1754915476585,-151.0,0.00020704,2]
[378578287,1754915476594,-500.0,0.00020704,2]
[378578288,1754915476604,-500.40964155,0.00020704,2]
[378578289,1754915476614,-151.0,0.00020704,2]
[378578290,1754915476624,-151.0,0.00020704,2]
[378578291,1754915476634,-151.93656,0.00020705,2]
[378578292,1754915476643,-151.0,0.00020705,2]
[378578293,1754915476653,-292.311801,0.00020705,2]
[378578294,1754915476662,-500.0,0.00020708,2]
[378578295,1754915476672,-480.367588,0.00020711,2]
[378578296,1754915476681,-846.638326,0.00020711,2]
[378578297,1754915476691,-846.638326,0.00020711,2]
[378578298,1754915476700,-151.0,0.00020712,2]
[378578299,1754915476710,-159.63872,0.00020712,2]
[378578300,1754915476720,-159.63872,0.00020712,2]
[378578301,1754915476730,-474.670673,0.00020712,2]
[378578302,1754915476743,-474.670673,0.00020712,2]
[378578303,1754915476753,-151.0,0.00020712,2]
[378578304,1754915476762,-151.0,0.00020712,2]
[378578305,1754915476772,-154.148534,0.00020713,2]
[378578306,1754915476783,-151.0,0.00020714,2]
[378578307,1754915476792,-19187.29552238,0.00020714,2]
[378578308,1754915476802,-2745.18,0.00020714,3]
[378578309,1754915476812,-2095.02,0.00020714,3]
[378578310,1754915476821,-1047.5,0.00020714,3]
[378578311,1754915476831,-523.76,0.00020714,3]
[378578312,1754915476840,-335.9,0.00020714,3]
[378578313,1754915476849,-151.0,0.00020714,2]
[378578314,1754915476859,-151.0,0.00020714,2]
[378578315,1754915476869,-300.0,0.00020717,2]
[378578316,1754915476879,-151.0,0.00020718,2]
[378578317,1754915476888,-151.0,0.00020718,2]
[378578318,1754915476898,-461.69158338,0.0002072,3]
[378578319,1754915476908,-417.15472785,0.0002072,3]
[378578320,1754915476921,-215.4905783,0.0002072,3]
[378578321,1754915476931,-160.0,0.0002072,3]
[378578322,1754915476940,-12666.14847857,0.0002072,3]
[378578323,1754915476950,-527.9539256,0.0002072,3]
[378578324,1754915476961,-160.0,0.0002072,3]
[378578325,1754915476970,-1001.46256496,0.00020721,2]
[378578326,1754915476980,-1000.0,0.00020721,2]
[378578327,1754915476990,-1000.0,0.00020721,2]
[378578328,1754915476999,-1005.589476,0.00020721,2]
[378578329,1754915477009,-1000.0,0.00020721,2]
[378578330,1754915477019,-671.82378502,0.00020721,2]
[378578331,1754915477028,-1003.06872789,0.00020721,2]
[378578332,1754915477038,-151.0,0.00020721,2]
[378578333,1754915477047,-1880.417424,0.00020721,2]
[378578334,1754915477056,-1880.417424,0.00020721,2]
[378578335,1754915477066,-460.0,0.00020734,2]
[378578336,1754915477076,-630.86,0.00020734,2]
[378578337,1754915477085,-1196.72,0.00020734,2]
[378578338,1754915477095,-211.51034252,0.00020734,2]
[378578339,1754915477104,-946.78,0.00020734,2]
[378578340,1754915477113,-1710.84,0.00020734,2]
[378578341,1754915477124,-405.84368222,0.00020734,2]
[378578342,1754915477133,-460.0,0.00020734,2]
[378578343,1754915477142,-460.0,0.00020734,2]
[378578344,1754915477151,-460.0,0.00020734,2]
[378578345,1754915477161,-598.72,0.00020734,2]
[378578346,1754915477171,-460.58,0.00020734,2]
[378578347,1754915477180,-460.0,0.00020734,2]
[378578348,1754915477190,-460.0,0.00020734,2]
[378578349,1754915477199,-921.45,0.00020734,2]
[378578350,1754915477209,-748.92,0.00020734,2]
[378578351,1754915477219,-850.26,0.00020734,2]
[378578352,1754915477238,-4482.68,0.00020734,2]
[378578353,1754915477250,-460.0,0.00020734,2]
[378578354,1754915477260,-1483.35,0.00020734,2]
[378578355,1754915477270,-1463.21,0.00020734,2]
[378578356,1754915477280,-460.0,0.00020734,2]
[378578357,1754915477291,-460.0,0.00020734,2]
[378578358,1754915477301,-1358.73,0.00020734,2]
[378578359,1754915477311,-895.48,0.00020734,2]
[378578360,1754915477321,-460.0,0.00020734,2]
[378578361,1754915477331,-460.0,0.00020734,2]
[378578362,1754915477341,-652.01,0.00020734,2]
[378578363,1754915477351,-1841.88,0.00020734,2]
[378578364,1754915477361,-460.0,0.00020734,2]
[378578365,1754915477371,-460.0,0.00020734,2]
[378578366,1754915477382,-460.0,0.00020734,2]
[378578367,1754915477392,-460.0,0.00020734,2]
[378578368,1754915477402,-4095.6,0.00020734,2]
[378578369,1754915477413,-472.74049455,0.00020734,2]
[378578370,1754915477423,-460.0,0.00020734,2]
[378578371,1754915477434,-460.0,0.00020734,2]
[378578372,1754915477444,-590.11345597,0.00020734,2]
[378578373,1754915477454,-580.82,0.00020734,2]
[378578374,1754915477466,-1180.53,0.00020734,2]
[378578375,1754915477476,-759.5,0.00020734,2]
[378578376,1754915477486,-460.0,0.00020734,2]
[378578377,1754915477496,-970.55,0.00020734,2]
[378578378,1754915477506,-589.71,0.00020734,2]
[378578379,1754915477516,-460.0,0.00020734,2]
[378578380,1754915477526,-460.0,0.00020734,2]
[378578381,1754915477536,-460.0,0.00020734,2]
[378578382,1754915477547,-3459.58,0.00020734,2]
[378578383,1754915477556,-313.55367865,0.00020734,2]
[378578384,1754915477566,-529.01,0.00020734,2]
[378578385,1754915477576,-1133.76,0.00020734,2]
[378578386,1754915477586,-978.71,0.00020734,2]
[378578387,1754915477595,-460.0,0.00020734,2]
[378578388,1754915477605,-1320.55,0.00020734,2]
[378578389,1754915477614,-460.0,0.00020734,2]
[378578390,1754915477625,-1249.33,0.00020734,2]
[378578391,1754915477635,-811.41,0.00020734,2]
[378578392,1754915477645,-862.89,0.00020734,2]
[378578393,1754915477655,-460.0,0.00020734,2]
[378578394,1754915477665,-460.0,0.00020734,2]
[378578395,1754915477675,-837.92,0.00020734,2]
[378578396,1754915477685,-472.02,0.00020734,2]
[378578397,1754915477695,-762.8,0.00020734,2]
[378578398,1754915477705,-957.96,0.00020734,2]
[378578399,1754915477714,-350.06220733,0.00020734,2]
[378578400,1754915478368,-1000.0,0.00019345,2]
[378578401,1754915478378,-151.0,0.00019345,2]
[378578402,1754915478387,-125.76645209,0.00019345,2]
[378578403,1754915478466,-460.0,0.00019345,2]
[378578404,1754915478477,-414.23354791,0.00019345,2]
[378578405,1754915478487,-151.0,0.00019345,2]
[378578406,1754915478496,-1000.0,0.00019345,2]
[378578407,1754915478506,-460.0,0.00019364,2]
[378578408,1754915478515,-1760.0,0.00019468,2]
[378578409,1754915478526,-460.0,0.00019638,2]
[378578410,1754915478535,-460.0,0.00019641,2]
[378578411,1754915478545,-460.0,0.00019912,2]
[378578412,1754915478555,-460.0,0.00019915,2]
[378578413,1754915478565,-460.0,0.00020186,2]
[378578414,1754915478575,-460.0,0.00020189,2]
[378578415,1754915478584,-460.0,0.00020189,2]
[378578416,1754915478595,-460.0,0.0002046,2]
[378578417,1754915478604,-460.0,0.00020463,2]
[378578418,1754915478614,-460.0,0.00020463,2]
[378578419,1754915478625,-109.93779267,0.00020734,2]
[378578420,1754915478634,-1016.89,0.00020734,2]
[378578421,1754915478644,-650.21,0.00020734,2]
[378578422,1754915478654,-558.25,0.00020734,2]
[378578423,1754915478663,-460.0,0.00020734,2]
[378578424,1754915478673,-5548.83,0.00020734,2]
[378578425,1754915478683,-152.89865943,0.00020734,2]
[378578426,1754915480000,-106.13057941,0.00020734,2]
[378578427,1754915480014,-200.97076116,0.00020734,2]
[378578428,1754915480025,-103.29063894,0.00020734,2]
[378578429,1754915480048,-356.70936106,0.00020734,2]
[378578430,1754915480061,-289.03140669,0.00020734,2]
[378578431,1754915480074,-907.31859331,0.00020734,2]
[378578432,1754915480084,-460.0,0.00020734,2]
[378578433,1754915480094,-460.0,0.00020734,2]
[378578434,1754915480104,-1053.1,0.00020734,2]
[378578435,1754915480114,-994.32,0.00020734,2]
[378578436,1754915480126,-460.0,0.00020734,2]
[378578437,1754915480136,-460.0,0.00020734,2]
[378578438,1754915480146,-460.0,0.00020734,2]
[378578439,1754915480156,-460.0,0.00020734,2]
[378578440,1754915480166,-460.0,0.00020737,2]
[378578441,1754915480176,-518.60815183,0.00020737,2]
[378578442,1754915480188,-162.03338255,0.00020737,2]
[378578443,1754915480199,-460.0,0.00020737,2]
[378578444,1754915480209,-460.0,0.00020737,2]
[378578445,1754915480219,-460.0,0.00020737,2]
[378578446,1754915480230,-345.28568918,0.00020737,2]
[378578447,1754915480240,-761.72,0.00020737,2]
[378578448,1754915480250,-460.0,0.00020737,2]
[378578449,1754915480260,-460.0,0.00020737,2]
[378578450,1754915480271,-460.0,0.00020737,2]
[378578451,1754915480282,-460.0,0.00020737,2]
[378578452,1754915480302,-519.77,0.00020737,2]
[378578453,1754915480316,-462.0,0.00020737,2]
[378578454,1754915480329,-460.0,0.00020737,2]
[378578455,1754915480344,-534.6,0.00020737,2]
[378578456,1754915480358,-460.0,0.00020737,2]
[378578457,1754915480374,-460.0,0.00020737,2]
[378578458,1754915480388,-460.0,0.00020737,2]
[378578459,1754915480401,-460.0,0.00020737,2]
[378578460,1754915480414,-462.25,0.00020737,2]
[378578461,1754915480428,-460.0,0.00020737,2]
[378578462,1754915480442,-460.0,0.00020737,2]
[378578463,1754915480457,-478.44,0.00020737,2]
[378578464,1754915480471,-460.0,0.00020737,2]
[378578465,1754915480485,-460.0,0.00020737,2]
[378578466,1754915480499,-460.0,0.00020737,2]
[378578467,1754915480514,-460.0,0.00020737,2]
[378578468,1754915480528,-460.0,0.00020737,2]
[378578469,1754915480541,-460.0,0.00020737,2]
[378578470,1754915480556,-460.0,0.00020737,2]
[378578471,1754915480572,-460.0,0.00020737,2]
[378578472,1754915480584,-214.62346184,0.00020737,2]
[378578473,1754915480596,-460.0,0.00020737,2]
[378578474,1754915480608,-1349.07,0.00020737,2]
[378578475,1754915480624,-263.28778115,0.00020737,2]
[378578476,1754915480639,-460.0,0.00020737,2]
[378578477,1754915480649,-460.0,0.00020737,2]
[378578478,1754915480661,-460.0,0.00020737,2]
[378578479,1754915480675,-460.0,0.00020737,2]
[378578480,1754915480686,-460.0,0.00020737,2]
[378578481,1754915480698,-460.0,0.00020737,2]
[378578482,1754915480709,-460.0,0.00020737,2]
[378578483,1754915480724,-460.0,0.00020737,2]
[378578484,1754915480736,-460.0,0.00020737,2]
[378578485,1754915480749,-460.0,0.00020737,2]
[378578486,1754915480761,-866.47,0.00020737,2]
[378578487,1754915480773,-890.67,0.00020737,2]
[378578488,1754915480785,-460.0,0.00020737,2]
[378578489,1754915480797,-516.79,0.00020737,2]
[378578490,1754915480810,-460.0,0.00020737,2]
[378578491,1754915480822,-460.0,0.00020737,2]
[378578492,1754915480834,-460.0,0.00020737,2]
[378578493,1754915480846,-494.0,0.00020737,2]
[378578494,1754915480859,-430.02938,0.00020737,2]
[378578495,1754915480871,-460.0,0.00020737,2]
[378578496,1754915480883,-460.0,0.00020737,2]
[378578497,1754915480896,-430.02938,0.00020737,2]
[378578498,1754915480908,-460.0,0.00020737,2]
[378578499,1754915480924,-460.0,0.00020737,2]
[378578500,1754915480936,-460.0,0.00020737,2]
[378578501,1754915480948,-1081.07,0.00020737,2]
[378578502,1754915480961,-460.0,0.00020737,2]
[378578503,1754915480979,-607.11,0.00020737,2]
[378578504,1754915480994,-460.0,0.00020737,2]
[378578505,1754915481010,-460.0,0.00020737,2]
[378578506,1754915481024,-781.16,0.00020737,2]
[378578507,1754915481040,-460.0,0.00020737,2]
[378578508,1754915481054,-460.0,0.00020737,2]
[378578509,1754915481068,-460.0,0.00020737,2]
[378578510,1754915481082,-460.0,0.00020737,2]
[378578511,1754915481097,-1497.45,0.00020737,2]
[378578512,1754915481109,-460.0,0.00020737,2]
[378578513,1754915481124,-2565.12,0.00020737,2]
[378578514,1754915481136,-473.89641595,0.00020737,2]
[378578515,1754915481148,-460.0,0.00020737,2]
[378578516,1754915481161,-460.0,0.00020737,2]
[378578517,1754915481173,-460.0,0.00020737,2]
[378578518,1754915481187,-153.21285888,0.00020737,2]
[378578519,1754915481200,-460.0,0.00020737,2]
[378578520,1754915481213,-460.0,0.00020737,2]
[378578521,1754915481225,-3067.95,0.00020737,2]
[378578522,1754915481238,-788.63,0.00020737,2]
[378578523,1754915481250,-460.0,0.00020737,2]
[378578524,1754915481262,-460.0,0.00020737,2]
[378578525,1754915481274,-460.0,0.00020737,2]
[378578526,1754915481287,-460.0,0.00020737,2]
[378578527,1754915481298,-804.53,0.00020737,2]
[378578528,1754915481311,-460.0,0.00020737,2]
[378578529,1754915481324,-2224.37,0.00020737,2]
[378578530,1754915481336,-460.0,0.00020737,2]
[378578531,1754915481348,-1615.44,0.00020737,2]
[378578532,1754915481361,-1000.0,0.00020737,2]
[378578533,1754915481374,-496.8149607,0.00020737,2]
[378578534,1754915481387,-460.0,0.00020737,2]
[378578535,1754915481400,-460.0,0.00020737,2]
[378578536,1754915481413,-1205.26,0.00020737,2]
[378578537,1754915481425,-936.33,0.00020737,2]
[378578538,1754915481437,-465.09013646,0.00020737,2]
[378578539,1754915481450,-460.0,0.00020737,2]
[378578540,1754915481461,-460.0,0.00020737,2]
[378578541,1754915481470,-460.0,0.00020737,2]
[378578542,1754915481480,-472.68,0.00020737,2]
[378578543,1754915481489,-1011.19,0.00020737,2]
[378578544,1754915481499,-460.0,0.00020737,2]
[378578545,1754915481508,-460.0,0.00020737,2]
[378578546,1754915481518,-515.75,0.00020737,2]
[378578547,1754915481527,-151.797321,0.00020737,2]
[378578548,1754915481537,-460.0,0.00020737,2]
[378578549,1754915481547,-460.0,0.00020737,2]
[378578550,1754915481556,-1773.45978648,0.00020737,2]
[378578551,1754915481570,-2269.47021352,0.00020737,2]
[378578552,1754915481580,-460.0,0.00020737,2]
[378578553,1754915481589,-460.0,0.00020737,2]
[378578554,1754915481599,-873.21,0.00020737,2]
[378578555,1754915481609,-460.0,0.00020737,2]
[378578556,1754915481618,-1632.07,0.00020737,2]
[378578557,1754915481628,-562.65,0.00020737,2]
[378578558,1754915481637,-460.0,0.00020737,2]
[378578559,1754915481647,-477.76394853,0.00020737,2]
[378578560,1754915481657,-460.0,0.00020737,2]
[378578561,1754915481667,-460.0,0.00020737,2]
[378578562,1754915481677,-724.2,0.00020737,2]
[378578563,1754915481687,-184.5030547,0.00020737,2]
[378578564,1754915481697,-460.0,0.00020737,2]
[378578565,1754915481706,-460.0,0.00020737,2]
[378578566,1754915481716,-460.0,0.00020737,2]
[378578567,1754915481726,-300.0,0.00020738,2]
[378578568,1754915481735,-151.0,0.00020766,2]
[378578569,1754915481745,-151.0,0.00020766,2]
[378578570,1754915481755,-200.325782,0.00020766,2]
[378578571,1754915481765,-200.325782,0.00020766,2]
[378578572,1754915481775,-151.0,0.00020767,2]
[378578573,1754915481784,-320.834265,0.00020767,2]
[378578574,1754915481793,-320.834265,0.00020767,2]
[378578575,1754915481803,-151.0,0.00020767,2]
[378578576,1754915481812,-151.0,0.00020767,2]
[378578577,1754915481821,-538.283317,0.00020768,2]
[378578578,1754915481831,-538.283317,0.00020768,2]
[378578579,1754915481841,-295.47814268,0.00020768,2]
[378578580,1754915481850,-154.141417,0.00020773,2]
[378578581,1754915481859,-266.471175,0.00020773,2]
[378578582,1754915481868,-266.471175,0.00020773,2]
[378578583,1754915481878,-151.0,0.00020773,2]
[378578584,1754915481888,-151.0,0.00020773,2]
[378578585,1754915481897,-498.75,0.00020817,2]
[378578586,1754915481906,-175.37584,0.00020825,2]
[378578587,1754915481918,-175.37584,0.00020825,2]
[378578588,1754915481928,-151.0,0.00020825,2]
[378578589,1754915481937,-167.79055,0.00020825,2]
[378578590,1754915481947,-332.452599,0.00020825,2]
[378578591,1754915481958,-332.452599,0.00020825,2]
[378578592,1754915481967,-234.411761,0.00020825,2]
[378578593,1754915481976,-234.411761,0.00020825,2]
[378578594,1754915481987,-151.0,0.00020825,2]
[378578595,1754915481997,-427.31556,0.0002083,2]
[378578596,1754915482006,-427.31556,0.0002083,2]
[378578597,1754915482015,-168.336469,0.0002083,2]
[378578598,1754915482025,-460.0,0.00020835,2]
[378578599,1754915482034,-460.0,0.00020835,2]
[378578600,1754915482043,-460.0,0.00020835,2]
[378578601,1754915482052,-783.23,0.00020835,2]
[378578602,1754915482062,-965.6,0.00020835,2]
[378578603,1754915482071,-460.0,0.00020835,2]
[378578604,1754915482080,-460.0,0.00020835,2]
[378578605,1754915482089,-460.0,0.00020835,2]
[378578606,1754915482098,-460.0,0.00020835,2]
[378578607,1754915482108,-460.0,0.00020835,2]
[378578608,1754915482117,-460.0,0.00020835,2]
[378578609,1754915482127,-460.0,0.00020835,2]
[378578610,1754915482136,-460.0,0.00020835,2]
[378578611,1754915482146,-585.61368016,0.00020835,2]
[378578612,1754915482156,-460.0,0.00020835,2]
[378578613,1754915482165,-500.0,0.00020835,2]
[378578614,1754915482174,-460.0,0.00020835,2]
[378578615,1754915482184,-460.0,0.00020835,2]
[378578616,1754915482194,-460.0,0.00020835,2]
[378578617,1754915482203,-460.0,0.00020835,2]
[378578618,1754915482213,-460.0,0.00020835,2]
[378578619,1754915482224,-460.0,0.00020835,2]
[378578620,1754915482234,-402.053,0.00020835,2]
[378578621,1754915482244,-460.0,0.00020835,2]
[378578631,1754915482672,-402.053,0.00020835,2]
[378578633,1754915482703,-460.0,0.00020835,2]
[378578635,1754915482721,-460.0,0.00020835,2]
[378578637,1754915482736,-504.22,0.00020835,2]
[378578638,1754915482746,-460.0,0.00020835,2]
[378578639,1754915482755,-1343.64,0.00020835,2]
[378578641,1754915482765,-151.0,0.00020835,2]
[378578642,1754915482774,-578.05,0.00020835,2]
[378578644,1754915482783,-460.0,0.00020835,2]
[378578645,1754915482793,-460.0,0.00020835,2]
[378578647,1754915482803,-460.0,0.00020835,2]
[378578648,1754915482814,-460.0,0.00020835,2]
[378578650,1754915482822,-460.0,0.00020835,2]
[378578651,1754915482832,-731.21,0.00020835,2]
[378578652,1754915482841,-460.0,0.00020835,2]
[378578654,1754915482850,-471.72628883,0.00020835,2]
[378578655,1754915482860,-676.34,0.00020835,2]
[378578657,1754915482869,-460.0,0.00020835,2]
[378578658,1754915482881,-460.0,0.00020835,2]
[378578659,1754915482890,-522.32,0.00020835,2]
[378578661,1754915482899,-460.0,0.00020835,2]
[378578662,1754915482911,-460.0,0.00020835,2]
[378578664,1754915482922,-1388.82,0.00020835,2]
[378578665,1754915482931,-460.0,0.00020835,2]
[378578667,1754915482940,-470.77358432,0.00020835,2]
[378578668,1754915482950,-460.0,0.00020835,2]
[378578670,1754915482961,-856.47,0.00020835,2]
[378578671,1754915482970,-1001.49,0.00020835,2]
[378578672,1754915482979,-151.0,0.00020835,2]
[378578674,1754915482988,-460.0,0.00020835,2]
[378578675,1754915482999,-460.0,0.00020835,2]
[378578677,1754915483009,-460.0,0.00020835,2]
[378578678,1754915483018,-829.52,0.00020835,2]
[378578680,1754915483027,-1619.3,0.00020835,2]
[378578681,1754915483037,-493.71,0.00020835,2]
[378578682,1754915483046,-460.0,0.00020835,2]
[378578684,1754915483055,-460.0,0.00020835,2]
[378578685,1754915483064,-460.0,0.00020835,2]
[378578687,1754915483073,-1212.26,0.00020835,2]
[378578688,1754915483083,-460.0,0.00020835,2]
[378578690,1754915483092,-505.88,0.00020835,2]
[378578691,1754915483101,-460.0,0.00020835,2]
[378578692,1754915483110,-487.13,0.00020835,2]
[378578694,1754915483120,-460.0,0.00020835,2]
[378578695,1754915483131,-460.0,0.00020835,2]
[378578697,1754915483141,-656.66,0.00020835,2]
[378578698,1754915483150,-428.84494656,0.00020835,2]
[378578700,1754915483159,-516.16,0.00020835,2]
[378578701,1754915483168,-460.0,0.00020835,2]
[378578702,1754915483178,-539.61640764,0.00020835,2]
[378578704,1754915483187,-460.0,0.00020835,2]
[378578705,1754915483197,-460.0,0.00020835,2]
[378578707,1754915483206,-460.0,0.00020835,2]
[378578708,1754915483216,-460.0,0.00020835,2]
[378578710,1754915483225,-685.16,0.00020835,2]
[378578711,1754915483235,-790.7,0.00020835,2]
[378578713,1754915483244,-348.09462261,0.00020835,2]
[378578714,1754915483253,-855.15,0.00020835,2]
[378578715,1754915483263,-603.45,0.00020835,2]
[378578717,1754915483272,-1640.73,0.00020835,2]
[378578718,1754915483282,-691.8443266,0.00020835,2]
[378578720,1754915483296,-46.3456734,0.00020835,2]
[378578721,1754915483306,-460.0,0.00020835,2]
[378578723,1754915483315,-460.0,0.00020835,2]
[378578724,1754915483324,-460.0,0.00020835,2]
[378578726,1754915483334,-1102.2305898,0.00020835,2]
[378578743,1754915483711,-293.00176164,0.00019218,2]
[378578745,1754915483733,-21.97428674,0.00019218,2]
[378578746,1754915483743,-151.0,0.00019345,2]
[378578747,1754915483753,-148.12769935,0.00019345,2]
[378578749,1754915483764,-309.30802384,0.00019345,2]
[378578751,1754915483780,-542.56427681,0.00019345,2]
[378578752,1754915483790,-151.0,0.00019345,2]
[378578753,1754915483799,-1000.0,0.00019345,2]
[378578755,1754915483808,-50.75871797,0.00019345,2]
[378578772,1754915484199,-314.97604838,0.00019254,2]
[378578774,1754915484209,-100.24128203,0.00019345,2]
[378578775,1754915484219,-1000.0,0.00019345,2]
[378578777,1754915484229,-1000.0,0.00019345,2]
[378578778,1754915484238,-232.27285772,0.00019345,2]
[378578779,1754915486400,-273.17072867,0.00019345,2]
[378578780,1754915486624,5912.94900482,0.00018472,2]
[378578781,1754915486647,10000.0,0.00018472,2]
[378578782,1754915486671,8987.05099518,0.00018472,2]
[378578783,1754915489827,-273.17072867,0.00019263,2]
[378578784,1754915491100,-173.74192822,0.00019262,2]
[378578785,1754915491414,-286.25807178,0.00019262,2]
[378578786,1754915491437,-64.39521334,0.00019262,2]
[378578787,1754915492025,-176.9113569,0.00019262,2]
[378578788,1754915495679,-180.95409544,0.00019262,2]
[378578899,1754915500592,-197.82291034,0.00019163,2]
[378578901,1754915500615,-37.73933432,0.00019262,2]
[378578903,1754915500641,-59.99801533,0.00019262,2]
[378578931,1754915502694,-176.68561055,0.00019262,2]
[378578932,1754915504197,-206.90154381,0.00019262,2]
[378578933,1754915506453,-157.673782,0.00019242,2]
[378578934,1754915508969,-218.05551761,0.00019242,2]
[378578935,1754915512250,-192.08818989,0.00019242,2]
[378578936,1754915512854,194.15830945,0.000189,2]
[378578937,1754915515389,-154.21641368,0.00019242,2]
[378578940,1754915517462,-194.5295507,0.00019242,2]
[378578941,1754915520639,-286.31288726,0.00019242,2]